[Event "SixDays Budapest GM-C 09-2024"]
[Site "Budapest"]
[Date "2024.09.28"]
[Round "7.4"]
[White "Sardana, Rishi"]
[Black "Zia, Tahsin Tajwar"]
[Result "1-0"]
[ECO "B12"]
[WhiteElo "2477"]
[BlackElo "2255"]
[Annotator "ChessBase"]
[PlyCount "77"]
[EventDate "2024.09.24"]
[EventType "tourn"]
[EventCountry "HUN"]
[SourceTitle "playchess.com"]
[Source "ChessBase"]
[SourceQuality "1"]
[TimeControl "5400+30"]

1. e4 {[%emt 0:07:12]} c6 {[%emt 0:00:35]} 2. d4 {[%emt 0:00:08]} d5 {[%emt 0:00:05]} 3. e5 {[%emt 0:00:20]} c5 {[%emt 0:00:26]} 4. c3 {[%emt 0:00:19]} Nc6 {[%emt 0:00:12]} 5. Be2 {[%emt 0:00:05]} Bf5 {[%emt 0:00:34]} 6. Nf3 {[%emt 0:00:09]} e6 {[%emt 0:00:07]} 7. O-O {[%emt 0:00:05]} Bg6 {[%emt 0:01:04]} 8. g3 {[%emt 0:10:09]} Be7 {[%emt 0:03:37]} 9. a3 {[%emt 0:07:42]} h5 {[%emt 0:09:54]} 10. h4 {[%emt 0:03:09]} Nh6 {[%emt 0:00:06]} 11. b4 {[%emt 0:10:12]} c4 {[%emt 0:02:07]} 12. Ng5 {[%emt 0:00:54]} Nf5 {[%emt 0:00:49]} 13. Re1 {[%emt 0:02:36]} Qb6 {[%emt 0:04:59]} 14. Bf4 {[%emt 0:09:11]} Kd7 {[%emt 0:16:21]} 15. Nd2 {[%emt 0:01:26]} Rae8 {[%emt 0:02:04]} 16. Nxc4 {[%emt 0:13:43]} dxc4 {[%emt 0:00:43]} 17. d5 {[%emt 0:00:03]} exd5 {[%emt 0:04:12]} 18. Qxd5+ {[%emt 0:00:06]} Kc8 {[%emt 0:00:13]} 19. Nxf7 {[%emt 0:08:54]} Bxf7 {[%emt 0:01:53]} 20. Qxf7 {[%emt 0:02:05]} Ref8 {[%emt 0:00:40]} 21. Qxc4 {[%emt 0:01:40]} Kb8 {[%emt 0:01:45]} 22. a4 {[%emt 0:02:33]} g5 {[%emt 0:10:35]} 23. hxg5 {[%emt 0:01:47]} h4 {[%emt 0:00:44]} 24. a5 {[%emt 0:00:18]} Qc7 {[%emt 0:00:35]} 25. g4 {[%emt 0:11:42]} Nfd4 {[%emt 0:15:55]} 26. Bh2 {[%emt 0:00:06]} Nc2 {[%emt 0:17:48]} 27. Red1 {[%emt 0:00:42]} Bxg5 {[%emt 0:00:12]} 28. Ra2 {[%emt 0:00:51]} Ne3 {[%emt 0:01:25]} 29. fxe3 {[%emt 0:00:05]} Bxe3+ {[%emt 0:00:01]} 30. Kh1 {[%emt 0:00:07]} Rf2 {[%emt 0:00:13]} 31. Qe4 {[%emt 0:01:17]} Bg5 {[%emt 0:00:05]} 32. Bc4 {[%emt 0:00:54]} Rhf8 {[%emt 0:00:12]} 33. Rxf2 {[%emt 0:00:53]} Rxf2 {[%emt 0:00:01]} 34. Rf1 {[%emt 0:00:16]} Rd2 {[%emt 0:01:05]} 35. a6 {[%emt 0:00:12]} Be7 {[%emt 0:00:52]} 36. Bf4 {[%emt 0:00:41]} Rb2 {[%emt 0:00:35]} 37. Bb5 {[%emt 0:00:35]} Qc8 {[%emt 0:00:57]} 38. e6+ {[%emt 0:00:14]} Ka8 {[%emt 0:00:01]} 39. Rd1 1-0

[Event "SixDays Budapest GM-C 09-2024"]
[Site "Budapest"]
[Date "2024.09.28"]
[Round "7.5"]
[White "Susilodinata, Andrean"]
[Black "Mayank Chakraborty"]
[Result "0-1"]
[ECO "A48"]
[WhiteElo "2393"]
[BlackElo "2431"]
[Annotator "ChessBase"]
[PlyCount "86"]
[EventDate "2024.09.24"]
[EventType "tourn"]
[EventCountry "HUN"]
[SourceTitle "playchess.com"]
[Source "ChessBase"]
[SourceQuality "1"]
[TimeControl "5400+30"]

1. d4 {[%emt 0:00:03]} Nf6 {[%emt 0:00:08]} 2. Nf3 {[%emt 0:01:19]} g6 {[%emt 0:00:27]} 3. Nc3 {[%emt 0:00:32]} d5 {[%emt 0:00:33]} 4. Bf4 {[%emt 0:00:06]} Bg7 {[%emt 0:01:01]} 5. h4 {[%emt 0:00:14]} c6 {[%emt 0:05:20]} 6. e3 {[%emt 0:00:12]} Bg4 {[%emt 0:01:17]} 7. Qd2 {[%emt 0:00:21]} Nbd7 {[%emt 0:02:20]} 8. Ne5 {[%emt 0:00:24]} Bf5 {[%emt 0:04:28]} 9. f3 {[%emt 0:01:16]} h5 {[%emt 0:00:55]} 10. O-O-O {[%emt 0:00:50]} Nxe5 {[%emt 0:22:07]} 11. Bxe5 {[%emt 0:00:34]} b5 {[%emt 0:01:01]} 12. Kb1 {[%emt 0:10:34]} Kf8 {[%emt 0:04:13]} 13. Ne2 {[%emt 0:16:30]} Ne8 {[%emt 0:11:02]} 14. Bxg7+ {[%emt 0:09:14]} Kxg7 {[%emt 0:00:19]} 15. Nf4 {[%emt 0:00:40]} Nd6 {[%emt 0:02:21]} 16. Bd3 {[%emt 0:00:12]} e6 {[%emt 0:03:18]} 17. Qe1 {[%emt 0:08:24]} Qf6 {[%emt 0:10:18]} 18. Qc3 {[%emt 0:02:13]} Bxd3 {[%emt 0:01:54]} 19. Nxd3 {[%emt 0:01:03]} Nc4 {[%emt 0:00:44]} 20. Nc5 {[%emt 0:02:26]} b4 {[%emt 0:01:31]} 21. Qd3 {[%emt 0:00:27]} a5 {[%emt 0:01:23]} 22. Nd7 {[%emt 0:06:15]} Qe7 {[%emt 0:00:19]} 23. Ne5 {[%emt 0:00:05]} Nxe5 {[%emt 0:00:13]} 24. dxe5 {[%emt 0:00:02]} Qc7 {[%emt 0:02:24]} 25. f4 {[%emt 0:02:03]} c5 {[%emt 0:03:58]} 26. e4 c4 {[%emt 0:01:10]} 27. Qg3 {[%emt 0:09:29]} dxe4 {[%emt 0:06:55]} 28. Qg5 {[%emt 0:00:06]} b3 {[%emt 0:02:35]} 29. Qf6+ {[%emt 0:01:26]} Kh7 {[%emt 0:01:37]} 30. cxb3 {[%emt 0:12:56]} cxb3 {[%emt 0:00:15]} 31. a3 {[%emt 0:00:09]} Rad8 {[%emt 0:03:23]} 32. Rc1 {[%emt 0:00:27]} Qd7 {[%emt 0:01:58]} 33. g4 {[%emt 0:00:18]} e3 34. gxh5 {[%emt 0:02:21]} gxh5 {[%emt 0:03:02]} 35. Qg5 {[%emt 0:02:02]} Qd3+ {[%emt 0:00:06]} 36. Ka1 {[%emt 0:00:01]} Qg6 {[%emt 0:00:17]} 37. Qe7 {[%emt 0:01:33]} e2 {[%emt 0:00:12]} 38. Qb7 {[%emt 0:00:49]} a4 {[%emt 0:01:27]} 39. Qf3 {[%emt 0:00:06]} Qg4 {[%emt 0:01:11]} 40. Qe4+ {[%emt 0:00:05]} Kh6 {[%emt 0:00:45]} 41. Qxa4 {[%emt 0:01:28]} Rd1 {[%emt 0:00:48]} 42. Qb4 {[%emt 0:00:37]} Rhd8 {[%emt 0:01:03]} 43. Re1 {[%emt 0:01:43]} Rxe1 {[%emt 0:00:21]} 0-1

[Event "SixDays Budapest GM-C 09-2024"]
[Site "Budapest"]
[Date "2024.09.28"]
[Round "8.2"]
[White "Zia, Tahsin Tajwar"]
[Black "Susilodinata, Andrean"]
[Result "1/2-1/2"]
[ECO "D15"]
[WhiteElo "2255"]
[BlackElo "2393"]
[Annotator "ChessBase"]
[PlyCount "64"]
[EventDate "2024.09.24"]
[EventType "tourn"]
[EventCountry "HUN"]
[SourceTitle "playchess.com"]
[Source "ChessBase"]
[SourceQuality "1"]
[TimeControl "5400+30"]

1. d4 {[%emt 0:00:02]} d5 {[%emt 0:00:02]} 2. c4 {[%emt 0:00:10]} c6 {[%emt 0:00:01]} 3. Nf3 {[%emt 0:00:05]} Nf6 {[%emt 0:00:03]} 4. Nc3 {[%emt 0:00:06]} dxc4 {[%emt 0:00:03]} 5. e4 {[%emt 0:00:05]} b5 {[%emt 0:00:12]} 6. Be2 {[%emt 0:00:08]} e6 {[%emt 0:00:08]} 7. a4 {[%emt 0:00:05]} b4 {[%emt 0:01:23]} 8. e5 {[%emt 0:00:06]} Nd5 {[%emt 0:05:33]} 9. Ne4 {[%emt 0:00:22]} c3 {[%emt 0:00:53]} 10. bxc3 {[%emt 0:00:47]} bxc3 {[%emt 0:00:09]} 11. O-O {[%emt 0:01:05]} a5 {[%emt 0:14:42]} 12. Ba3 {[%emt 0:05:32]} Bb4 {[%emt 0:01:43]} 13. Nd6+ {[%emt 0:03:30]} Kf8 {[%emt 0:00:06]} 14. h4 {[%emt 0:02:25]} h6 {[%emt 0:00:18]} 15. g3 {[%emt 0:00:25]} Ba6 {[%emt 0:01:05]} 16. Ne1 {[%emt 0:01:16]} Bxe2 {[%emt 0:03:31]} 17. Qxe2 {[%emt 0:00:06]} Na6 {[%emt 0:00:09]} 18. Nc2 {[%emt 0:04:27]} h5 {[%emt 0:06:33]} 19. Ne3 {[%emt 0:06:45]} g5 {[%emt 0:01:43]} 20. Nxd5 {[%emt 0:18:55]} cxd5 {[%emt 0:00:07]} 21. f4 {[%emt 0:00:10]} f5 {[%emt 0:13:40]} 22. hxg5 {[%emt 0:04:57]} Kg7 {[%emt 0:02:04]} 23. Kg2 {[%emt 0:01:30]} Kg6 {[%emt 0:01:58]} 24. Rh1 {[%emt 0:14:27]} Qc7 {[%emt 0:11:25]} 25. g4 {[%emt 0:14:17]} hxg4 {[%emt 0:00:33]} 26. Qxa6 {[%emt 0:00:04]} Rxa6 {[%emt 0:22:55]} 27. Rxh8 {[%emt 0:00:37]} Bxd6 {[%emt 0:01:04]} 28. Rah1 {[%emt 0:04:20]} Qc4 {[%emt 0:05:14]} 29. R1h6+ {[%emt 0:02:04]} Kg7 {[%emt 0:00:06]} 30. R6h7+ {[%emt 0:00:07]} Kg6 {[%emt 0:00:05]} 31. Rh6+ {[%emt 0:01:08]} Kg7 {[%emt 0:00:01]} 32. R6h7+ {[%emt 0:00:06]} Kg6 {[%emt 0:00:04]} 1/2-1/2

[Event "SixDays Budapest GM-C 09-2024"]
[Site "Budapest"]
[Date "2024.09.28"]
[Round "8.3"]
[White "Grebennikov, Nikolai A."]
[Black "Sardana, Rishi"]
[Result "0-1"]
[ECO "E46"]
[WhiteElo "2220"]
[BlackElo "2477"]
[Annotator "ChessBase"]
[PlyCount "108"]
[EventDate "2024.09.24"]
[EventType "tourn"]
[EventCountry "HUN"]
[SourceTitle "playchess.com"]
[Source "ChessBase"]
[SourceQuality "1"]
[TimeControl "5400+30"]

1. d4 {[%emt 0:06:00]} Nf6 {[%emt 0:00:09]} 2. c4 {[%emt 0:00:09]} e6 {[%emt 0:00:03]} 3. Nc3 {[%emt 0:00:39]} Bb4 {[%emt 0:00:07]} 4. e3 {[%emt 0:00:07]} O-O {[%emt 0:00:05]} 5. Nge2 {[%emt 0:00:03]} Re8 {[%emt 0:00:08]} 6. a3 {[%emt 0:00:07]} Bf8 {[%emt 0:00:07]} 7. d5 {[%emt 0:00:06]} a5 {[%emt 0:00:25]} 8. Ng3 {[%emt 0:00:12]} Na6 {[%emt 0:00:26]} 9. Be2 {[%emt 0:00:07]} Nc5 {[%emt 0:00:40]} 10. b3 {[%emt 0:00:06]} exd5 {[%emt 0:06:23]} 11. cxd5 {[%emt 0:00:27]} Bd6 {[%emt 0:09:15]} 12. Bb2 {[%emt 0:09:37]} Be5 {[%emt 0:01:51]} 13. Qc2 {[%emt 0:04:13]} d6 {[%emt 0:17:28]} 14. Rb1 {[%emt 0:16:28]} h5 {[%emt 0:11:03]} 15. b4 {[%emt 0:21:19]} axb4 {[%emt 0:00:19]} 16. axb4 {[%emt 0:00:03]} Na6 {[%emt 0:01:07]} 17. Bxa6 {[%emt 0:06:37]} bxa6 {[%emt 0:01:01]} 18. O-O {[%emt 0:00:31]} Ng4 {[%emt 0:06:30]} 19. Nce2 {[%emt 0:03:28]} h4 {[%emt 0:01:31]} 20. h3 {[%emt 0:05:01]} hxg3 {[%emt 0:02:34]} 21. hxg4 {[%emt 0:00:03]} gxf2+ {[%emt 0:02:30]} 22. Rxf2 {[%emt 0:00:02]} Bxg4 {[%emt 0:04:45]} 23. Rbf1 {[%emt 0:01:05]} Bxb2 {[%emt 0:08:42]} 24. Qxb2 {[%emt 0:00:07]} Qg5 {[%emt 0:07:13]} 25. Rxf7 {[%emt 0:00:50]} Qxe3+ {[%emt 0:02:30]} 26. R1f2 {[%emt 0:00:03]} Re5 {[%emt 0:04:02]} 27. Nd4 {[%emt 0:08:44]} Qg5 {[%emt 0:00:36]} 28. Nc6 {[%emt 0:07:29]} Re1+ {[%emt 0:00:06]} 29. Rf1 {[%emt 0:00:01]} Rae8 {[%emt 0:03:38]} 30. Rf8+ {[%emt 0:05:47]} Rxf8 {[%emt 0:00:04]} 31. Rxe1 {[%emt 0:00:01]} Kh8 {[%emt 0:01:52]} 32. Re7 {[%emt 0:01:59]} Bf3 {[%emt 0:01:11]} 33. Qf2 {[%emt 0:00:48]} Rf6 {[%emt 0:00:33]} 34. Qc2 {[%emt 0:03:30]} Rg6 {[%emt 0:00:39]} 35. Re8+ {[%emt 0:01:16]} Kh7 {[%emt 0:00:05]} 36. Nd4 {[%emt 0:00:25]} Bxg2 {[%emt 0:01:31]} 37. Kf2 {[%emt 0:00:58]} Bxd5 {[%emt 0:00:54]} 38. Ne2 {[%emt 0:00:28]} Qg2+ {[%emt 0:02:07]} 39. Ke1 {[%emt 0:00:03]} Bf3 {[%emt 0:01:41]} 40. Qc4 {[%emt 0:00:28]} Qh1+ {[%emt 0:01:55]} 41. Kd2 {[%emt 0:00:07]} d5 {[%emt 0:00:31]} 42. Qd3 {[%emt 0:00:50]} Qh6+ {[%emt 0:00:21]} 43. Kc2 {[%emt 0:00:42]} Be4 {[%emt 0:00:28]} 44. Rxe4 {[%emt 0:00:18]} dxe4 {[%emt 0:00:03]} 45. Qxe4 {[%emt 0:00:02]} Qh2 {[%emt 0:00:24]} 46. Kb3 {[%emt 0:00:19]} Qg2 {[%emt 0:00:22]} 47. Qd3 {[%emt 0:00:47]} Qf1 {[%emt 0:01:00]} 48. Qe4 {[%emt 0:00:36]} Qf7+ {[%emt 0:00:24]} 49. Kb2 {[%emt 0:00:48]} Kg8 {[%emt 0:00:30]} 50. Nf4 {[%emt 0:00:01]} Rd6 {[%emt 0:00:55]} 51. Kc3 {[%emt 0:00:47]} g5 {[%emt 0:00:40]} 52. Nd3 {[%emt 0:00:25]} Qf6+ {[%emt 0:00:19]} 53. Kc2 {[%emt 0:00:35]} Qg6 {[%emt 0:00:20]} 54. Qc4+ {[%emt 0:00:11]} Kf8 {[%emt 0:00:12]} 0-1

[Event "SixDays Budapest GM-C 09-2024"]
[Site "Budapest"]
[Date "2024.09.28"]
[Round "8.4"]
[White "Gatineau, Yovann"]
[Black "Palczert, Matyas"]
[Result "0-1"]
[ECO "D37"]
[WhiteElo "2400"]
[BlackElo "2345"]
[Annotator "ChessBase"]
[PlyCount "102"]
[EventDate "2024.09.24"]
[EventType "tourn"]
[EventCountry "HUN"]
[SourceTitle "playchess.com"]
[Source "ChessBase"]
[SourceQuality "1"]
[TimeControl "5400+30"]

1. d4 {[%emt 0:04:52]} Nf6 {[%emt 0:00:07]} 2. c4 {[%emt 0:00:08]} e6 {[%emt 0:00:05]} 3. Nf3 {[%emt 0:00:06]} d5 {[%emt 0:00:07]} 4. Nc3 {[%emt 0:00:06]} Be7 {[%emt 0:00:10]} 5. Bf4 {[%emt 0:00:19]} O-O {[%emt 0:00:20]} 6. e3 {[%emt 0:00:06]} b6 {[%emt 0:00:26]} 7. Be2 {[%emt 0:01:27]} Ba6 {[%emt 0:03:57]} 8. cxd5 {[%emt 0:01:15]} Nxd5 {[%emt 0:00:16]} 9. Nxd5 {[%emt 0:00:27]} Qxd5 {[%emt 0:00:08]} 10. Bxc7 {[%emt 0:00:42]} Qa5+ {[%emt 0:02:42]} 11. Kf1 {[%emt 0:00:07]} Bxe2+ {[%emt 0:01:17]} 12. Qxe2 {[%emt 0:00:21]} Rc8 {[%emt 0:01:46]} 13. Bxb8 {[%emt 0:23:28]} Raxb8 {[%emt 0:00:38]} 14. g3 {[%emt 0:00:08]} Qf5 {[%emt 0:06:30]} 15. Kg2 {[%emt 0:03:56]} Rc2 {[%emt 0:01:03]} 16. Qa6 {[%emt 0:11:54]} Rbc8 {[%emt 0:06:23]} 17. Rhe1 {[%emt 0:17:01]} Qe4 {[%emt 0:06:09]} 18. Qb5 {[%emt 0:02:28]} g5 {[%emt 0:06:17]} 19. Qe5 {[%emt 0:01:55]} Qxe5 {[%emt 0:00:33]} 20. Nxe5 {[%emt 0:00:16]} Rxb2 {[%emt 0:00:29]} 21. Rec1 {[%emt 0:01:55]} Rcc2 {[%emt 0:05:54]} 22. Rxc2 {[%emt 0:01:11]} Rxc2 {[%emt 0:00:07]} 23. a4 {[%emt 0:00:55]} f6 {[%emt 0:01:37]} 24. Nd3 {[%emt 0:02:03]} Rc3 {[%emt 0:03:42]} 25. Ne1 {[%emt 0:05:10]} Kf7 {[%emt 0:07:04]} 26. Kf3 {[%emt 0:02:04]} Bb4 {[%emt 0:01:14]} 27. h4 {[%emt 0:03:37]} gxh4 {[%emt 0:01:45]} 28. gxh4 {[%emt 0:00:06]} e5 {[%emt 0:04:20]} 29. dxe5 {[%emt 0:04:31]} fxe5 {[%emt 0:00:07]} 30. h5 {[%emt 0:06:29]} Ke6 {[%emt 0:03:49]} 31. Ke2 {[%emt 0:02:41]} e4 {[%emt 0:04:18]} 32. Ng2 {[%emt 0:01:28]} Rc2+ {[%emt 0:00:24]} 33. Kf1 {[%emt 0:00:08]} Bd6 {[%emt 0:01:20]} 34. Nf4+ {[%emt 0:02:28]} Bxf4 {[%emt 0:02:18]} 35. exf4 {[%emt 0:00:01]} Kf5 {[%emt 0:00:52]} 36. Rd1 {[%emt 0:00:28]} Kg4 {[%emt 0:09:56]} 37. f5 {[%emt 0:00:47]} Kf3 {[%emt 0:00:31]} 38. Kg1 {[%emt 0:00:51]} Rc5 {[%emt 0:02:52]} 39. Rd7 {[%emt 0:00:55]} Rxf5 {[%emt 0:07:54]} 40. Rxh7 {[%emt 0:00:35]} Ke2 {[%emt 0:00:12]} 41. Re7 {[%emt 0:01:00]} Rg5+ {[%emt 0:00:11]} 42. Kh2 {[%emt 0:00:08]} Kxf2 {[%emt 0:01:17]} 43. Rf7+ {[%emt 0:00:54]} Ke2 {[%emt 0:00:14]} 44. Rxa7 {[%emt 0:00:13]} Rxh5+ {[%emt 0:02:05]} 45. Kg3 {[%emt 0:00:03]} e3 {[%emt 0:03:35]} 46. Ra6 {[%emt 0:00:34]} Rg5+ {[%emt 0:00:18]} 47. Kf4 {[%emt 0:00:37]} Ra5 {[%emt 0:00:18]} 48. Rxb6 {[%emt 0:00:08]} Kf2 {[%emt 0:01:23]} 49. Ke4 {[%emt 0:00:43]} Rxa4+ {[%emt 0:00:30]} 50. Kd3 {[%emt 0:00:02]} Ra3+ {[%emt 0:00:16]} 51. Kc2 {[%emt 0:00:07]} e2 {[%emt 0:00:12]} 0-1

[Event "SixDays Budapest GM-C 09-2024"]
[Site "Budapest"]
[Date "2024.09.28"]
[Round "8.5"]
[White "Gretarsson, Helgi Ass"]
[Black "Grover, Sahaj"]
[Result "0-1"]
[ECO "D38"]
[WhiteElo "2450"]
[BlackElo "2496"]
[Annotator "ChessBase"]
[PlyCount "128"]
[EventDate "2024.09.24"]
[EventType "tourn"]
[EventCountry "HUN"]
[SourceTitle "playchess.com"]
[Source "ChessBase"]
[SourceQuality "1"]
[TimeControl "5400+30"]

1. d4 {[%emt 0:00:03]} Nf6 {[%emt 0:00:55]} 2. c4 {[%emt 0:00:06]} e6 {[%emt 0:00:04]} 3. Nf3 {[%emt 0:00:05]} d5 {[%emt 0:00:05]} 4. Nc3 {[%emt 0:00:04]} Bb4 {[%emt 0:00:05]} 5. cxd5 {[%emt 0:00:07]} exd5 {[%emt 0:00:04]} 6. Bg5 {[%emt 0:00:05]} h6 {[%emt 0:00:06]} 7. Bh4 {[%emt 0:00:03]} O-O {[%emt 0:00:07]} 8. e3 {[%emt 0:00:15]} Bf5 {[%emt 0:00:11]} 9. Be2 {[%emt 0:00:08]} Nbd7 {[%emt 0:01:06]} 10. Qb3 {[%emt 0:03:02]} Bxc3+ {[%emt 0:00:26]} 11. Qxc3 {[%emt 0:00:08]} g5 {[%emt 0:32:46]} 12. Bg3 {[%emt 0:00:12]} Ne4 {[%emt 0:00:07]} 13. Qxc7 {[%emt 0:16:15]} Qxc7 {[%emt 0:00:15]} 14. Bxc7 {[%emt 0:00:07]} Rac8 {[%emt 0:00:03]} 15. Rc1 {[%emt 0:25:22]} Nb6 {[%emt 0:00:12]} 16. O-O {[%emt 0:00:13]} Na4 {[%emt 0:00:05]} 17. Ba5 {[%emt 0:20:07]} Nxb2 {[%emt 0:00:21]} 18. Bb4 {[%emt 0:00:26]} Rfd8 {[%emt 0:00:56]} 19. h3 {[%emt 0:01:25]} Na4 {[%emt 0:25:27]} 20. Bd3 {[%emt 0:04:31]} Nb2 21. Be2 Kg7 {[%emt 0:03:15]} 22. Rfe1 {[%emt 0:08:02]} Na4 {[%emt 0:03:55]} 23. Bd3 {[%emt 0:00:46]} Bh7 {[%emt 0:00:11]} 24. Be7 {[%emt 0:07:31]} Rh8 {[%emt 0:02:53]} 25. Ne5 {[%emt 0:06:38]} Nec3 {[%emt 0:03:57]} 26. Rc2 {[%emt 0:00:07]} Bxd3 {[%emt 0:08:36]} 27. Nxd3 {[%emt 0:00:02]} b6 {[%emt 0:01:02]} 28. Kf1 {[%emt 0:04:07]} a5 {[%emt 0:00:33]} 29. Rec1 {[%emt 0:00:16]} f6 {[%emt 0:03:00]} 30. Ba3 {[%emt 0:00:04]} Rc4 {[%emt 0:00:53]} 31. Nb2 {[%emt 0:01:47]} Nxb2 {[%emt 0:00:06]} 32. Bxb2 {[%emt 0:00:02]} Ne4 {[%emt 0:00:07]} 33. f3 {[%emt 0:02:11]} Nd6 {[%emt 0:00:07]} 34. e4 {[%emt 0:00:29]} b5 {[%emt 0:04:19]} 35. exd5 {[%emt 0:01:15]} Rhc8 {[%emt 0:00:55]} 36. Rxc4 {[%emt 0:00:20]} Nxc4 {[%emt 0:00:13]} 37. d6 {[%emt 0:01:39]} Kf7 {[%emt 0:00:26]} 38. a4 {[%emt 0:00:53]} Rd8 {[%emt 0:03:58]} 39. Bc3 {[%emt 0:00:08]} bxa4 {[%emt 0:01:35]} 40. Ke2 {[%emt 0:00:50]} Rxd6 {[%emt 0:02:52]} 41. Ra1 {[%emt 0:00:10]} a3 {[%emt 0:00:42]} 42. Kd3 {[%emt 0:00:08]} Rc6 {[%emt 0:00:25]} 43. d5 {[%emt 0:00:50]} Rc5 {[%emt 0:01:16]} 44. Kd4 {[%emt 0:00:29]} Rc8 {[%emt 0:00:04]} 45. Kd3 {[%emt 0:00:14]} Nb2+ {[%emt 0:00:25]} 46. Kd2 {[%emt 0:00:13]} Rd8 {[%emt 0:00:04]} 47. Ke2 {[%emt 0:00:17]} Re8+ {[%emt 0:02:23]} 48. Kd2 {[%emt 0:00:22]} Nc4+ {[%emt 0:00:57]} 49. Kd3 {[%emt 0:00:05]} Ne3 {[%emt 0:00:04]} 50. Rxa3 {[%emt 0:01:32]} Nxg2 {[%emt 0:00:41]} 51. Bd2 {[%emt 0:00:22]} Nh4 {[%emt 0:00:18]} 52. Kc4 {[%emt 0:00:31]} a4 {[%emt 0:01:08]} 53. Ba5 Ra8 54. Kb5 {[%emt 0:00:36]} Ke7 {[%emt 0:01:13]} 55. Kxa4 {[%emt 0:01:35]} Kd6 {[%emt 0:00:31]} 56. Rd3 {[%emt 0:00:04]} Ng6 {[%emt 0:00:12]} 57. Kb5 {[%emt 0:00:09]} Rb8+ 58. Ka4 {[%emt 0:00:28]} Nf4 {[%emt 0:01:57]} 59. Rd1 Nxd5 60. Bc7+ {[%emt 0:00:45]} Kxc7 {[%emt 0:00:30]} 61. Rxd5 Kc6 62. Rf5 {[%emt 0:00:24]} Rf8 {[%emt 0:00:14]} 63. h4 {[%emt 0:01:08]} Kd6 {[%emt 0:00:11]} 64. hxg5 {[%emt 0:00:04]} Ke6 {[%emt 0:00:08]} 0-1